[Event "Late-Titled-Tuesday-Blitz-June-25-2024"]
[Site "Chess.com"]
[Date "2024.06.25"]
[Round "9"]
[White "dolynachess"]
[Black "DryCounty"]
[Result "0-1"]
[WhiteElo "2522"]
[BlackElo "2643"]
[TimeControl "180+1"]
[EndTime "15:44:23 PDT"]
[Termination "DryCounty won by resignation"]

1. d3 {[%clk 0:02:56.9]} 1... d5 {[%clk 0:02:57.7]} 2. d4 {[%clk 0:02:57.8]}
2... c5 {[%clk 0:02:54.7]} 3. c4 {[%clk 0:02:58.7]} 3... cxd4 {[%clk 0:02:51.2]}
4. Qxd4 {[%clk 0:02:50.8]} 4... Nc6 {[%clk 0:02:46.3]} 5. Qxd5 {[%clk
0:02:43.6]} 5... Qxd5 {[%clk 0:02:44.7]} 6. cxd5 {[%clk 0:02:44.5]} 6... Nb4
{[%clk 0:02:44.4]} 7. Na3 {[%clk 0:02:42.5]} 7... Nxd5 {[%clk 0:02:40.4]} 8. e4
{[%clk 0:02:25.8]} 8... Nb4 {[%clk 0:02:38.7]} 9. Bd2 {[%clk 0:02:18.6]} 9... e6
{[%clk 0:02:34.1]} 10. Bb5+ {[%clk 0:02:14.7]} 10... Bd7 {[%clk 0:02:33.3]} 11.
Bxd7+ {[%clk 0:02:10.8]} 11... Kxd7 {[%clk 0:02:34.2]} 12. Ke2 {[%clk
0:02:02.3]} 12... Nc6 {[%clk 0:02:19.9]} 13. Rd1 {[%clk 0:01:46.5]} 13... Nd4+
{[%clk 0:02:01.9]} 14. Ke3 {[%clk 0:01:29.6]} 14... Bxa3 {[%clk 0:01:33]} 15.
Bc3 {[%clk 0:01:28.4]} 15... Bc5 {[%clk 0:01:19.6]} 16. Nf3 {[%clk 0:01:04.2]}
16... e5 {[%clk 0:01:09.1]} 17. Nxe5+ {[%clk 0:01:01.4]} 17... Ke6 {[%clk
0:01:08.8]} 18. Bxd4 {[%clk 0:00:38.3]} 18... Bxd4+ {[%clk 0:01:08.2]} 19. Rxd4
{[%clk 0:00:38.8]} 19... Kxe5 {[%clk 0:01:06.3]} 20. Rd7 {[%clk 0:00:39.2]}
20... Nf6 {[%clk 0:00:58.1]} 21. Re7+ {[%clk 0:00:20.4]} 21... Kd6 {[%clk
0:00:57.3]} 22. Rxf7 {[%clk 0:00:20.4]} 22... Ke6 {[%clk 0:00:56.9]} 23. Rxg7
{[%clk 0:00:16.6]} 23... Rhg8 {[%clk 0:00:56.4]} 24. Rxg8 {[%clk 0:00:16.2]}
24... Rxg8 {[%clk 0:00:55.7]} 25. g3 {[%clk 0:00:16.6]} 25... Rc8 {[%clk
0:00:54]} 26. Kd3 {[%clk 0:00:13.3]} 26... Ng4 {[%clk 0:00:51.6]} 27. Rf1 {[%clk
0:00:11.6]} 27... Ne5+ {[%clk 0:00:51.4]} 28. Ke3 {[%clk 0:00:09.4]} 28... Rc2
{[%clk 0:00:51.3]} 29. h3 {[%clk 0:00:07.8]} 29... Rxb2 {[%clk 0:00:50.5]} 30.
a4 {[%clk 0:00:08.7]} 30... Ra2 {[%clk 0:00:48.6]} 31. f4 {[%clk 0:00:07.7]}
31... Nc4+ {[%clk 0:00:46.7]} 32. Kd4 {[%clk 0:00:08]} 32... Rxa4 {[%clk
0:00:46.1]} 33. g4 {[%clk 0:00:06.6]} 33... Ne5+ {[%clk 0:00:44.2]} 34. Ke3
{[%clk 0:00:05.2]} 34... Ra3+ {[%clk 0:00:44.3]} 35. Ke2 {[%clk 0:00:04.1]}
35... Nc4 {[%clk 0:00:43.3]} 36. f5+ {[%clk 0:00:01.5]} 36... Kf6 {[%clk
0:00:42.6]} 37. g5+ {[%clk 0:00:01.6]} 37... Kxg5 {[%clk 0:00:42.1]} 38. f6
{[%clk 0:00:02]} 38... Re3+ {[%clk 0:00:36.1]} 39. Kd1 {[%clk 0:00:01.6]} 39...
Rd3+ {[%clk 0:00:33.8]} 40. Ke2 {[%clk 0:00:02.2]} 40... Rd8 {[%clk 0:00:33.8]}
41. f7 {[%clk 0:00:02.4]} 41... Rf8 {[%clk 0:00:33.7]} 0-1

[Event "Late-Titled-Tuesday-Blitz-June-25-2024"]
[Site "Chess.com"]
[Date "2024.06.25"]
[Round "9"]
[White "chess_sharparchitect"]
[Black "Chessdude1987"]
[Result "0-1"]
[WhiteElo "2333"]
[BlackElo "2369"]
[TimeControl "180+1"]
[EndTime "15:44:26 PDT"]
[Termination "Chessdude1987 won on time"]

1. c4 {[%clk 0:03:00.9]} 1... e6 {[%clk 0:02:59.9]} 2. e4 {[%clk 0:02:59.9]}
2... d5 {[%clk 0:02:59.5]} 3. exd5 {[%clk 0:02:59.1]} 3... exd5 {[%clk
0:03:00.4]} 4. cxd5 {[%clk 0:02:58.8]} 4... Nf6 {[%clk 0:03:00.1]} 5. Nc3 {[%clk
0:02:58.6]} 5... Nxd5 {[%clk 0:02:54]} 6. Bc4 {[%clk 0:02:57.9]} 6... c6 {[%clk
0:02:33.1]} 7. Qf3 {[%clk 0:02:49.4]} 7... Be6 {[%clk 0:02:30.7]} 8. Nge2 {[%clk
0:02:44.3]} 8... Be7 {[%clk 0:02:03.9]} 9. d4 {[%clk 0:02:25.4]} 9... O-O {[%clk
0:02:01.3]} 10. Bd3 {[%clk 0:02:16.8]} 10... Nd7 {[%clk 0:01:56.8]} 11. O-O
{[%clk 0:01:53.6]} 11... N7f6 {[%clk 0:01:49]} 12. h3 {[%clk 0:01:37.1]} 12...
h6 {[%clk 0:01:38.6]} 13. Qg3 {[%clk 0:01:27]} 13... Kh8 {[%clk 0:01:37.4]} 14.
Bd2 {[%clk 0:01:17.2]} 14... Nb4 {[%clk 0:01:15]} 15. Bb1 {[%clk 0:01:12.9]}
15... c5 {[%clk 0:01:15.1]} 16. a3 {[%clk 0:00:55.8]} 16... Nc6 {[%clk
0:00:50.8]} 17. Qd3 {[%clk 0:00:45.6]} 17... Nxd4 {[%clk 0:00:40.6]} 18. Nxd4
{[%clk 0:00:22]} 18... Qxd4 {[%clk 0:00:36.9]} 19. Qc2 {[%clk 0:00:21.3]} 19...
Rad8 {[%clk 0:00:22.2]} 20. Be3 {[%clk 0:00:21.3]} 20... Qc4 {[%clk 0:00:19.4]}
21. Ba2 {[%clk 0:00:17.9]} 21... Qd3 {[%clk 0:00:19.3]} 22. Qa4 {[%clk
0:00:16.4]} 22... Bxa2 {[%clk 0:00:17.4]} 23. Rxa2 {[%clk 0:00:15.6]} 23... a6
{[%clk 0:00:14.4]} 24. Raa1 {[%clk 0:00:13.9]} 24... Qg6 {[%clk 0:00:13.6]} 25.
Kh1 {[%clk 0:00:10]} 25... Nd5 {[%clk 0:00:11.4]} 26. Nxd5 {[%clk 0:00:07.6]}
26... Rxd5 {[%clk 0:00:11.5]} 27. Qb3 {[%clk 0:00:07.6]} 27... Rd7 {[%clk
0:00:11.3]} 28. Rac1 {[%clk 0:00:04.9]} 28... Rc8 {[%clk 0:00:09.8]} 29. Rfd1
{[%clk 0:00:03.2]} 29... Rxd1+ {[%clk 0:00:09.3]} 30. Rxd1 {[%clk 0:00:03.1]}
30... Qe6 {[%clk 0:00:08.7]} 0-1

[Event "Late-Titled-Tuesday-Blitz-June-25-2024"]
[Site "Chess.com"]
[Date "2024.06.25"]
[Round "9"]
[White "TigrVShlyape"]
[Black "GothamChess"]
[Result "1-0"]
[WhiteElo "2984"]
[BlackElo "2758"]
[TimeControl "180+1"]
[EndTime "15:44:29 PDT"]
[Termination "TigrVShlyape won by resignation"]

1. e4 {[%clk 0:03:00.9]} 1... d5 {[%clk 0:02:55.4]} 2. exd5 {[%clk 0:02:58.6]}
2... Qxd5 {[%clk 0:02:56.3]} 3. Nc3 {[%clk 0:02:58.6]} 3... Qa5 {[%clk
0:02:56.9]} 4. Bc4 {[%clk 0:02:55.7]} 4... Nf6 {[%clk 0:02:56.9]} 5. Nge2 {[%clk
0:02:54.6]} 5... Nc6 {[%clk 0:02:53.5]} 6. O-O {[%clk 0:02:53.5]} 6... Bg4
{[%clk 0:02:50.3]} 7. Qe1 {[%clk 0:02:46.6]} 7... Bxe2 {[%clk 0:02:41.3]} 8.
Nxe2 {[%clk 0:02:41.6]} 8... e6 {[%clk 0:02:38.7]} 9. d4 {[%clk 0:02:38.5]} 9...
Qxe1 {[%clk 0:02:05.4]} 10. Rxe1 {[%clk 0:02:38.4]} 10... O-O-O {[%clk
0:01:59.4]} 11. c3 {[%clk 0:02:36.5]} 11... e5 {[%clk 0:01:56.6]} 12. Bxf7
{[%clk 0:02:21.2]} 12... exd4 {[%clk 0:01:55.2]} 13. Nxd4 {[%clk 0:02:16.5]}
13... Nxd4 {[%clk 0:01:49.5]} 14. cxd4 {[%clk 0:02:16.8]} 14... Rxd4 {[%clk
0:01:44.9]} 15. Be3 {[%clk 0:02:16.8]} 15... Rb4 {[%clk 0:01:34.9]} 16. b3
{[%clk 0:02:14.8]} 16... Bd6 {[%clk 0:01:27.4]} 17. h3 {[%clk 0:02:05.5]} 17...
Re4 {[%clk 0:01:07.2]} 18. Bd2 {[%clk 0:01:49.3]} 18... Rf8 {[%clk 0:00:56.1]}
19. Bc4 {[%clk 0:01:46.7]} 19... a6 {[%clk 0:00:55.7]} 20. f3 {[%clk 0:01:27]}
20... Ree8 {[%clk 0:00:46.7]} 21. a4 {[%clk 0:01:21.9]} 21... Bg3 {[%clk
0:00:34.4]} 22. Rxe8+ {[%clk 0:01:19.6]} 22... Rxe8 {[%clk 0:00:35.3]} 23. Kf1
{[%clk 0:01:18.6]} 23... h6 {[%clk 0:00:34.2]} 24. Bc3 {[%clk 0:01:13.7]} 24...
Be5 {[%clk 0:00:30.5]} 25. Rc1 {[%clk 0:01:07.1]} 25... Bg3 {[%clk 0:00:25]} 26.
Rd1 {[%clk 0:01:03.9]} 26... Re7 {[%clk 0:00:19.2]} 27. Bb4 {[%clk 0:00:59]}
27... Re8 {[%clk 0:00:18.8]} 28. Bc5 {[%clk 0:00:57.7]} 28... Nd7 {[%clk
0:00:16.3]} 29. Bf7 {[%clk 0:00:51.2]} 29... Re1+ {[%clk 0:00:11.2]} 30. Rxe1
{[%clk 0:00:50.3]} 30... Bxe1 {[%clk 0:00:12.1]} 31. Bd4 {[%clk 0:00:50.4]}
31... Bd2 {[%clk 0:00:08.5]} 32. Bxg7 {[%clk 0:00:50.1]} 32... Nc5 {[%clk
0:00:08]} 33. Ke2 {[%clk 0:00:49.1]} 33... Bg5 {[%clk 0:00:07.6]} 34. g3 {[%clk
0:00:47.1]} 34... Bc1 {[%clk 0:00:05.8]} 35. f4 {[%clk 0:00:45.9]} 35... Ne4
{[%clk 0:00:06.4]} 36. Kf3 {[%clk 0:00:45.2]} 36... Nd6 {[%clk 0:00:04.1]} 37.
Be6+ {[%clk 0:00:45]} 37... Kd8 {[%clk 0:00:04.8]} 38. Bxh6 {[%clk 0:00:45.2]}
38... Ke7 {[%clk 0:00:05.7]} 39. Bd5 {[%clk 0:00:40.9]} 39... c6 {[%clk
0:00:05.8]} 40. Be4 {[%clk 0:00:41.1]} 40... Nf7 {[%clk 0:00:03.9]} 41. Bg7
{[%clk 0:00:40.8]} 41... c5 {[%clk 0:00:04.3]} 42. h4 {[%clk 0:00:40.5]} 42...
b5 {[%clk 0:00:04.3]} 43. axb5 {[%clk 0:00:40]} 43... axb5 {[%clk 0:00:05.2]}
44. Bd5 {[%clk 0:00:40.1]} 44... Nd6 {[%clk 0:00:03.9]} 45. h5 {[%clk
0:00:39.2]} 45... Nf5 {[%clk 0:00:04]} 46. h6 {[%clk 0:00:37.8]} 46... Nxh6
{[%clk 0:00:02.5]} 47. Bxh6 {[%clk 0:00:37.6]} 47... Kd6 {[%clk 0:00:03.4]} 48.
Ke4 {[%clk 0:00:37.5]} 1-0

[Event "Late-Titled-Tuesday-Blitz-June-25-2024"]
[Site "Chess.com"]
[Date "2024.06.25"]
[Round "9"]
[White "andrew-blr"]
[Black "ACollins05"]
[Result "0-1"]
[WhiteElo "2591"]
[BlackElo "2429"]
[TimeControl "180+1"]
[EndTime "15:44:29 PDT"]
[Termination "ACollins05 won by resignation"]

1. d4 {[%clk 0:02:03.4]} 1... b5 {[%clk 0:02:58.9]} 2. e4 {[%clk 0:01:58.9]}
2... a6 {[%clk 0:02:59]} 3. Nf3 {[%clk 0:01:57.8]} 3... Bb7 {[%clk 0:02:59.4]}
4. Bd3 {[%clk 0:01:57.5]} 4... e6 {[%clk 0:02:59.9]} 5. O-O {[%clk 0:01:56.8]}
5... c5 {[%clk 0:03:00.4]} 6. c3 {[%clk 0:01:52.2]} 6... Nf6 {[%clk 0:03:00.4]}
7. Re1 {[%clk 0:01:51.5]} 7... Be7 {[%clk 0:02:59.7]} 8. Nbd2 {[%clk 0:01:50.5]}
8... d6 {[%clk 0:03:00]} 9. a4 {[%clk 0:01:49.7]} 9... c4 {[%clk 0:03:00]} 10.
Bc2 {[%clk 0:01:48.7]} 10... Nbd7 {[%clk 0:02:59.7]} 11. Nf1 {[%clk 0:01:46.3]}
11... O-O {[%clk 0:02:58.9]} 12. Ng3 {[%clk 0:01:46.4]} 12... Qc7 {[%clk
0:02:55.8]} 13. Bg5 {[%clk 0:01:42.2]} 13... Rfe8 {[%clk 0:02:54.9]} 14. h4
{[%clk 0:01:25.3]} 14... h6 {[%clk 0:02:32.5]} 15. Be3 {[%clk 0:01:22.9]} 15...
Bf8 {[%clk 0:02:31.1]} 16. h5 {[%clk 0:01:20.7]} 16... Nb6 {[%clk 0:02:26]} 17.
axb5 {[%clk 0:01:17.4]} 17... axb5 {[%clk 0:02:25.8]} 18. Rxa8 {[%clk
0:01:17.2]} 18... Rxa8 {[%clk 0:02:24.1]} 19. Bb1 {[%clk 0:01:16.8]} 19... Nbd7
{[%clk 0:02:17.4]} 20. Qc2 {[%clk 0:00:52.9]} 20... Be7 {[%clk 0:01:52.4]} 21.
e5 {[%clk 0:00:46.6]} 21... dxe5 {[%clk 0:01:52.7]} 22. dxe5 {[%clk 0:00:46.5]}
22... Nxe5 {[%clk 0:01:52.7]} 23. Nxe5 {[%clk 0:00:46.7]} 23... Qxe5 {[%clk
0:01:52.4]} 24. Rd1 {[%clk 0:00:39.8]} 24... Rd8 {[%clk 0:01:45.6]} 25. Rxd8+
{[%clk 0:00:32.2]} 25... Bxd8 {[%clk 0:01:46.5]} 26. Bd4 {[%clk 0:00:31.4]}
26... Qd5 {[%clk 0:01:46.9]} 27. f3 {[%clk 0:00:31.8]} 27... e5 {[%clk
0:01:46.9]} 28. Bf2 {[%clk 0:00:31.2]} 28... Be7 {[%clk 0:01:42.6]} 29. Qf5
{[%clk 0:00:30.2]} 29... Bc5 {[%clk 0:01:37.2]} 30. Ne4 {[%clk 0:00:29.2]} 30...
Bxf2+ {[%clk 0:01:34.7]} 31. Kxf2 {[%clk 0:00:29.4]} 31... Nxe4+ {[%clk
0:01:31.9]} 32. Bxe4 {[%clk 0:00:28.7]} 32... Qd2+ {[%clk 0:01:31.7]} 33. Kg3
{[%clk 0:00:28.5]} 33... Bxe4 {[%clk 0:01:25.9]} 34. Qxe4 {[%clk 0:00:28.4]}
34... Qd6 {[%clk 0:01:12]} 35. Qa8+ {[%clk 0:00:25.7]} 35... Kh7 {[%clk
0:01:11.8]} 36. Qe4+ {[%clk 0:00:25.4]} 36... g6 {[%clk 0:01:11.5]} 37. Kh2
{[%clk 0:00:25.6]} 37... Kg7 {[%clk 0:01:08.7]} 38. hxg6 {[%clk 0:00:25.4]}
38... fxg6 {[%clk 0:01:07.9]} 39. Qb7+ {[%clk 0:00:25.4]} 39... Kf6 {[%clk
0:01:08]} 40. Qxb5 {[%clk 0:00:26]} 40... e4+ {[%clk 0:01:07.4]} 41. Kh3 {[%clk
0:00:21.5]} 41... exf3 {[%clk 0:01:04.6]} 42. gxf3 {[%clk 0:00:21.2]} 42... Qe6+
{[%clk 0:01:04.3]} 43. Kg2 {[%clk 0:00:20.2]} 43... Qe2+ {[%clk 0:01:04]} 44.
Kg3 {[%clk 0:00:20.6]} 44... Qe5+ {[%clk 0:01:01.8]} 45. Qxe5+ {[%clk 0:00:20]}
45... Kxe5 {[%clk 0:01:02.7]} 46. Kf2 {[%clk 0:00:15.2]} 46... Kf4 {[%clk
0:01:02.8]} 47. Ke2 {[%clk 0:00:15.6]} 47... h5 {[%clk 0:01:03]} 48. Kf2 {[%clk
0:00:15.9]} 48... h4 {[%clk 0:01:02.8]} 49. Kg2 {[%clk 0:00:16.4]} 49... g5
{[%clk 0:01:02.1]} 50. Kf2 {[%clk 0:00:15.3]} 50... h3 {[%clk 0:01:02.3]} 51.
Kg1 {[%clk 0:00:14.6]} 51... Kxf3 {[%clk 0:01:02.3]} 52. Kh2 {[%clk 0:00:15.5]}
52... g4 {[%clk 0:01:02.7]} 53. Kh1 {[%clk 0:00:15.4]} 53... Ke3 {[%clk
0:01:02.5]} 54. b4 {[%clk 0:00:15.1]} 54... cxb3 {[%clk 0:01:02.6]} 55. c4
{[%clk 0:00:15.5]} 55... Kd4 {[%clk 0:01:03.1]} 56. Kh2 {[%clk 0:00:16.4]} 56...
Kxc4 {[%clk 0:01:03.2]} 0-1

[Event "Late-Titled-Tuesday-Blitz-June-25-2024"]
[Site "Chess.com"]
[Date "2024.06.25"]
[Round "9"]
[White "LoonsDeKoeben"]
[Black "IMRosen"]
[Result "0-1"]
[WhiteElo "2433"]
[BlackElo "2702"]
[TimeControl "180+1"]
[EndTime "15:44:30 PDT"]
[Termination "IMRosen won on time"]

1. e4 {[%clk 0:03:00.9]} 1... c5 {[%clk 0:02:59.1]} 2. Nf3 {[%clk 0:03:00.6]}
2... Nc6 {[%clk 0:02:59]} 3. Bc4 {[%clk 0:02:54.5]} 3... e6 {[%clk 0:02:56.1]}
4. O-O {[%clk 0:02:51.6]} 4... a6 {[%clk 0:02:54.3]} 5. Re1 {[%clk 0:02:49]}
5... Nge7 {[%clk 0:02:53.9]} 6. d4 {[%clk 0:02:24.8]} 6... cxd4 {[%clk
0:02:52.5]} 7. Nxd4 {[%clk 0:02:25.7]} 7... Qc7 {[%clk 0:02:48.6]} 8. a4 {[%clk
0:01:30]} 8... Ng6 {[%clk 0:02:42.8]} 9. Nxc6 {[%clk 0:01:27.3]} 9... bxc6
{[%clk 0:02:38.8]} 10. Be3 {[%clk 0:01:22.7]} 10... Be7 {[%clk 0:02:27.8]} 11.
a5 {[%clk 0:01:13.7]} 11... d5 {[%clk 0:02:25]} 12. exd5 {[%clk 0:01:11.1]}
12... cxd5 {[%clk 0:02:24.6]} 13. Bf1 {[%clk 0:01:02.2]} 13... O-O {[%clk
0:02:23.5]} 14. Nd2 {[%clk 0:00:55.8]} 14... Rb8 {[%clk 0:02:23.2]} 15. Nb3
{[%clk 0:00:55.3]} 15... Bf6 {[%clk 0:02:12.8]} 16. Bb6 {[%clk 0:00:49.8]} 16...
Qc6 {[%clk 0:01:51.2]} 17. c3 {[%clk 0:00:49.7]} 17... e5 {[%clk 0:01:45.9]} 18.
g3 {[%clk 0:00:33.7]} 18... Be7 {[%clk 0:01:26.5]} 19. Bg2 {[%clk 0:00:33.1]}
19... Bb7 {[%clk 0:01:26.4]} 20. Rc1 {[%clk 0:00:28]} 20... Qe6 {[%clk
0:01:10.9]} 21. Nc5 {[%clk 0:00:26.5]} 21... Bxc5 {[%clk 0:01:10.9]} 22. Bxc5
{[%clk 0:00:27.4]} 22... Rfe8 {[%clk 0:01:11.6]} 23. b4 {[%clk 0:00:27]} 23...
Rbd8 {[%clk 0:01:06.5]} 24. Qb3 {[%clk 0:00:24.2]} 24... Bc6 {[%clk 0:01:03.9]}
25. Red1 {[%clk 0:00:20.5]} 25... h5 {[%clk 0:01:01.2]} 26. h4 {[%clk
0:00:14.8]} 26... f5 {[%clk 0:00:52.8]} 27. Qc2 {[%clk 0:00:09.3]} 27... f4
{[%clk 0:00:45.5]} 28. c4 {[%clk 0:00:09.7]} 28... d4 {[%clk 0:00:36.9]} 29. Be4
{[%clk 0:00:03.2]} 29... Bxe4 {[%clk 0:00:11.8]} 30. Qxe4 {[%clk 0:00:03]} 30...
Qg4 {[%clk 0:00:12.6]} 31. Rd3 {[%clk 0:00:02.3]} 31... Nxh4 {[%clk 0:00:11.6]}
32. Kf1 {[%clk 0:00:01.3]} 32... Nf5 {[%clk 0:00:09.5]} 0-1

[Event "Late-Titled-Tuesday-Blitz-June-25-2024"]
[Site "Chess.com"]
[Date "2024.06.25"]
[Round "9"]
[White "Eloist"]
[Black "LidongW"]
[Result "1-0"]
[WhiteElo "2453"]
[BlackElo "2335"]
[TimeControl "180+1"]
[EndTime "15:44:33 PDT"]
[Termination "Eloist won by resignation"]

1. e4 {[%clk 0:03:00.9]} 1... e6 {[%clk 0:02:59.3]} 2. d4 {[%clk 0:02:59.7]}
2... d5 {[%clk 0:03:00.2]} 3. Nd2 {[%clk 0:02:59.3]} 3... Nf6 {[%clk 0:03:00.3]}
4. e5 {[%clk 0:02:58]} 4... Nfd7 {[%clk 0:03:00.8]} 5. c3 {[%clk 0:02:57]} 5...
c5 {[%clk 0:03:01.1]} 6. f4 {[%clk 0:02:52.5]} 6... Nc6 {[%clk 0:03:01.2]} 7.
Ngf3 {[%clk 0:02:50.9]} 7... Qb6 {[%clk 0:03:00.7]} 8. Nb3 {[%clk 0:02:50]} 8...
cxd4 {[%clk 0:02:53.1]} 9. cxd4 {[%clk 0:02:49.5]} 9... a5 {[%clk 0:02:50.2]}
10. a4 {[%clk 0:02:48.9]} 10... Bb4+ {[%clk 0:02:40.4]} 11. Kf2 {[%clk
0:02:44.8]} 11... f6 {[%clk 0:02:38.3]} 12. Be3 {[%clk 0:02:34.6]} 12... O-O
{[%clk 0:02:13.6]} 13. Bb5 {[%clk 0:02:30.1]} 13... Ne7 {[%clk 0:02:05.2]} 14.
g4 {[%clk 0:02:17.9]} 14... Qd8 {[%clk 0:02:02.1]} 15. Kg3 {[%clk 0:02:09.1]}
15... h5 {[%clk 0:01:56]} 16. h3 {[%clk 0:02:06.2]} 16... fxe5 {[%clk
0:01:55.9]} 17. dxe5 {[%clk 0:01:51.2]} 17... Nb6 {[%clk 0:01:25]} 18. Qd3
{[%clk 0:01:29.4]} 18... Nc4 {[%clk 0:01:05.3]} 19. Ng5 {[%clk 0:01:27.1]} 19...
g6 {[%clk 0:01:05.3]} 20. Bc5 {[%clk 0:00:51.7]} 20... h4+ {[%clk 0:00:50.4]}
21. Kg2 {[%clk 0:00:44.4]} 21... Bxc5 {[%clk 0:00:48.4]} 22. Nxc5 {[%clk
0:00:42.8]} 22... Qb6 {[%clk 0:00:47.8]} 23. Qd4 {[%clk 0:00:27.1]} 23... Nc6
{[%clk 0:00:33.3]} 24. Bxc6 {[%clk 0:00:25.7]} 24... Qxc6 {[%clk 0:00:25.8]} 25.
b3 {[%clk 0:00:18]} 25... Nb6 {[%clk 0:00:22.2]} 26. Rac1 {[%clk 0:00:17.9]}
26... Qe8 {[%clk 0:00:22]} 27. Rhf1 {[%clk 0:00:17.1]} 27... Bd7 {[%clk
0:00:21.3]} 28. Ncxe6 {[%clk 0:00:14.7]} 28... Bxe6 {[%clk 0:00:20.9]} 29. Qxb6
{[%clk 0:00:14.8]} 29... Bf7 {[%clk 0:00:17]} 30. e6 {[%clk 0:00:14.5]} 30...
Ra6 {[%clk 0:00:14.8]} 31. exf7+ {[%clk 0:00:13.9]} 31... Rxf7 {[%clk
0:00:15.7]} 32. Qf2 {[%clk 0:00:10.5]} 32... d4 {[%clk 0:00:14.1]} 33. Rfe1
{[%clk 0:00:10.5]} 33... Re7 {[%clk 0:00:13.5]} 34. Rxe7 {[%clk 0:00:10]} 34...
Qxe7 {[%clk 0:00:14.4]} 35. Rc8+ {[%clk 0:00:10.1]} 35... Kg7 {[%clk 0:00:14.3]}
36. Qxd4+ {[%clk 0:00:10.2]} 36... Rf6 {[%clk 0:00:14.2]} 37. Qe5 {[%clk
0:00:09]} 37... Qb4 {[%clk 0:00:12.5]} 38. Ne4 {[%clk 0:00:08.7]} 1-0

[Event "Late-Titled-Tuesday-Blitz-June-25-2024"]
[Site "Chess.com"]
[Date "2024.06.25"]
[Round "9"]
[White "Maus7"]
[Black "KoshkaMatrioshka"]
[Result "1-0"]
[WhiteElo "2671"]
[BlackElo "2557"]
[TimeControl "180+1"]
[EndTime "15:44:34 PDT"]
[Termination "Maus7 won by checkmate"]

1. e4 {[%clk 0:02:56.5]} 1... e6 {[%clk 0:03:00.3]} 2. d4 {[%clk 0:02:54.8]}
2... d5 {[%clk 0:03:00.9]} 3. e5 {[%clk 0:02:55.3]} 3... c5 {[%clk 0:03:01.1]}
4. c3 {[%clk 0:02:56]} 4... Nc6 {[%clk 0:03:01.6]} 5. Nf3 {[%clk 0:02:56.6]}
5... Qb6 {[%clk 0:03:02.2]} 6. Bd3 {[%clk 0:02:57]} 6... cxd4 {[%clk 0:03:02.7]}
7. O-O {[%clk 0:02:57.3]} 7... Bd7 {[%clk 0:03:03.4]} 8. Re1 {[%clk 0:02:55.7]}
8... Nge7 {[%clk 0:03:03.9]} 9. h4 {[%clk 0:02:55.5]} 9... Rc8 {[%clk
0:03:04.2]} 10. Nbd2 {[%clk 0:02:44.2]} 10... dxc3 {[%clk 0:03:04.4]} 11. bxc3
{[%clk 0:02:44.2]} 11... Na5 {[%clk 0:03:04.4]} 12. Rb1 {[%clk 0:02:39.3]} 12...
Qd8 {[%clk 0:03:04.3]} 13. Qc2 {[%clk 0:02:08.2]} 13... h6 {[%clk 0:02:50.2]}
14. Ba3 {[%clk 0:02:04.4]} 14... Nec6 {[%clk 0:02:21.9]} 15. Bxf8 {[%clk
0:01:44.8]} 15... Kxf8 {[%clk 0:02:22.8]} 16. Qa4 {[%clk 0:01:38.4]} 16... Qe7
{[%clk 0:02:08.4]} 17. Qf4 {[%clk 0:01:37.6]} 17... b6 {[%clk 0:02:05.5]} 18.
Re3 {[%clk 0:01:30.3]} 18... Rc7 {[%clk 0:02:04.9]} 19. h5 {[%clk 0:01:20.7]}
19... Nb7 {[%clk 0:02:05]} 20. Nd4 {[%clk 0:01:09.7]} 20... Nxd4 {[%clk
0:01:48.4]} 21. cxd4 {[%clk 0:01:10.6]} 21... Na5 {[%clk 0:01:46.2]} 22. Rg3
{[%clk 0:00:58.1]} 22... Ba4 {[%clk 0:01:20.6]} 23. Rb2 {[%clk 0:00:28.4]} 23...
Rg8 {[%clk 0:00:47.9]} 24. Nf3 {[%clk 0:00:22.6]} 24... Bd1 {[%clk 0:00:41.7]}
25. Bh7 {[%clk 0:00:15.8]} 25... Rh8 {[%clk 0:00:41.5]} 26. Bg6 {[%clk
0:00:16.1]} 26... Bxf3 {[%clk 0:00:40.2]} 27. Rxf3 {[%clk 0:00:16]} 27... Ke8
{[%clk 0:00:39.4]} 28. Bd3 {[%clk 0:00:15.3]} 28... Nc4 {[%clk 0:00:36]} 29. Rc2
{[%clk 0:00:14.9]} 29... Rf8 {[%clk 0:00:20.7]} 30. Rg3 {[%clk 0:00:14.3]} 30...
Rg8 {[%clk 0:00:18.1]} 31. Bh7 {[%clk 0:00:13.9]} 31... Rh8 {[%clk 0:00:15.7]}
32. Rxg7 {[%clk 0:00:14.1]} 32... Na5 {[%clk 0:00:10.4]} 33. Rxc7 {[%clk
0:00:12.4]} 33... Qxc7 {[%clk 0:00:11.3]} 34. Rxf7 {[%clk 0:00:12.9]} 34... Qc3
{[%clk 0:00:03.5]} 35. Qf6 {[%clk 0:00:11.5]} 35... Rxh7 {[%clk 0:00:01]} 36.
Qe7# {[%clk 0:00:11.2]} 1-0

[Event "Late-Titled-Tuesday-Blitz-June-25-2024"]
[Site "Chess.com"]
[Date "2024.06.25"]
[Round "9"]
[White "ATM622"]
[Black "Defenstrator"]
[Result "1-0"]
[WhiteElo "2531"]
[BlackElo "2408"]
[TimeControl "180+1"]
[EndTime "15:44:35 PDT"]
[Termination "ATM622 won by resignation"]

1. d4 {[%clk 0:03:00.9]} 1... Nf6 {[%clk 0:02:59]} 2. c4 {[%clk 0:03:00.7]} 2...
e5 {[%clk 0:02:58.9]} 3. dxe5 {[%clk 0:03:00.6]} 3... Ng4 {[%clk 0:02:59.5]} 4.
Nf3 {[%clk 0:03:01]} 4... Bc5 {[%clk 0:02:58.9]} 5. e3 {[%clk 0:03:01.2]} 5...
Nc6 {[%clk 0:02:59]} 6. Nc3 {[%clk 0:03:01.4]} 6... O-O {[%clk 0:02:55.9]} 7.
Be2 {[%clk 0:03:00.9]} 7... Re8 {[%clk 0:02:50.7]} 8. O-O {[%clk 0:02:56.6]}
8... Ncxe5 {[%clk 0:02:47]} 9. Nxe5 {[%clk 0:02:54.7]} 9... Nxe5 {[%clk
0:02:47.4]} 10. a3 {[%clk 0:02:51]} 10... a5 {[%clk 0:02:47.5]} 11. Ne4 {[%clk
0:02:44.1]} 11... Bf8 {[%clk 0:02:46.6]} 12. Ng3 {[%clk 0:02:34.7]} 12... Ra6
{[%clk 0:02:42.4]} 13. e4 {[%clk 0:02:29.6]} 13... Rae6 {[%clk 0:02:21]} 14. f4
{[%clk 0:02:18.5]} 14... Bc5+ {[%clk 0:02:05.7]} 15. Kh1 {[%clk 0:02:18.2]}
15... Rh6 {[%clk 0:01:58.3]} 16. Nf5 {[%clk 0:02:09.3]} 16... Ng6 {[%clk
0:01:21.4]} 17. Nxh6+ {[%clk 0:02:02.5]} 17... gxh6 {[%clk 0:01:21.9]} 18. f5
{[%clk 0:01:58.8]} 18... Nh4 {[%clk 0:01:13.8]} 19. Bd3 {[%clk 0:01:54.6]} 19...
b6 {[%clk 0:01:08.9]} 20. Bxh6 {[%clk 0:01:50.6]} 20... Kh8 {[%clk 0:01:07]} 21.
f6 {[%clk 0:01:49.9]} 21... Bf8 {[%clk 0:01:04.4]} 22. Qh5 {[%clk 0:01:34.4]}
22... Ng6 {[%clk 0:01:00.7]} 23. Bxf8 {[%clk 0:01:33.2]} 23... Rxf8 {[%clk
0:01:00.9]} 24. Qh6 {[%clk 0:01:33.2]} 24... Rg8 {[%clk 0:01:00.5]} 25. e5
{[%clk 0:01:33.2]} 25... Bb7 {[%clk 0:00:55.3]} 26. Rf2 {[%clk 0:01:24.6]} 26...
d6 {[%clk 0:00:53.3]} 27. Bxg6 {[%clk 0:01:20.6]} 27... Rxg6 {[%clk 0:00:51.9]}
28. Qe3 {[%clk 0:01:20.3]} 28... Qg8 {[%clk 0:00:35.3]} 29. Rg1 {[%clk
0:01:19.1]} 29... Rg4 {[%clk 0:00:29.7]} 30. e6 {[%clk 0:01:13.4]} 30... Re4
{[%clk 0:00:25.7]} 31. exf7 {[%clk 0:01:09.6]} 31... Qxf7 {[%clk 0:00:26.3]} 32.
Qh6 {[%clk 0:01:03.2]} 32... Rxc4 {[%clk 0:00:23.6]} 33. Re1 {[%clk 0:01:01.7]}
33... Be4 {[%clk 0:00:19]} 34. b3 {[%clk 0:00:36.5]} 34... Rd4 {[%clk
0:00:17.4]} 35. Qe3 {[%clk 0:00:28.3]} 35... c5 {[%clk 0:00:17.9]} 36. Rd2
{[%clk 0:00:16.6]} 36... Qd5 {[%clk 0:00:12.8]} 37. Rxd4 {[%clk 0:00:15.8]}
37... Bxg2+ {[%clk 0:00:13]} 38. Kg1 {[%clk 0:00:15.9]} 38... cxd4 {[%clk
0:00:13.3]} 39. Qe8+ {[%clk 0:00:15.7]} 1-0